[Event "NK ABC Kwalificatie 2"]
[Site "Zoetermeer, Netherlands"]
[Date "????.??.??"]
[Round "7.2"]
[White "Bakija, Alan"]
[Black "Ramdien, Steven"]
[Result "1-0"]
[TimeControl "55+10"]
[WhiteFideId "8629346"]
[BlackFideId "8722626"]
[WhiteElo "2247"]
[BlackElo "1780"]

1. d4 {[%clk 00:55:14]} {[%emt 00:00:05]} Nf6 {[%clk 00:55:15]} {[%emt
00:00:05]} 2. c4 {[%clk 00:55:22]} {[%emt 00:00:03]} g6 {[%clk 00:55:04]}
{[%emt 00:00:21]} 3. Nf3 {[%clk 00:55:26]} {[%emt 00:00:05]} Bg7 {[%clk
00:55:05]} {[%emt 00:00:08]} 4. g3 {[%clk 00:55:31]} {[%emt 00:00:05]} d6
{[%clk 00:54:49]} {[%emt 00:00:28]} 5. Nc3 {[%clk 00:55:29]} {[%emt 00:00:11]}
O-O {[%clk 00:54:26]} {[%emt 00:00:33]} 6. Bg2 {[%clk 00:55:32]} {[%emt
00:00:05]} c5 {[%clk 00:53:17]} {[%emt 00:01:21]} 7. O-O {[%clk 00:55:28]}
{[%emt 00:00:12]} e6 {[%clk 00:51:45]} {[%emt 00:01:40]} 8. dxc5 {[%clk
00:54:32]} {[%emt 00:01:10]} dxc5 {[%clk 00:51:39]} {[%emt 00:00:17]} 9. Be3
{[%clk 00:52:08]} {[%emt 00:02:33]} Qe7 {[%clk 00:49:08]} {[%emt 00:02:40]} 10.
Qc2 {[%clk 00:50:19]} {[%emt 00:02:00]} Nbd7 {[%clk 00:44:41]} {[%emt
00:04:37]} 11. Rad1 {[%clk 00:49:45]} {[%emt 00:00:44]} Nb6 {[%clk 00:43:52]}
{[%emt 00:00:59]} 12. b3 {[%clk 00:47:53]} {[%emt 00:02:02]} Bd7 {[%clk
00:37:28]} {[%emt 00:06:33]} 13. Ne5 {[%clk 00:46:45]} {[%emt 00:01:20]} Rab8
{[%clk 00:36:33]} {[%emt 00:00:57]} 14. Bf4 {[%clk 00:44:59]} {[%emt 00:02:03]}
Nh5 {[%clk 00:35:08]} {[%emt 00:01:35]} 15. Nxd7 {[%clk 00:41:17]} {[%emt
00:03:52]} Nxf4 {[%clk 00:34:59]} {[%emt 00:00:19]} 16. Nxb6 {[%clk 00:40:59]}
{[%emt 00:00:28]} Nxg2 {[%clk 00:28:28]} {[%emt 00:06:42]} 17. Nd7 {[%clk
00:40:10]} {[%emt 00:00:59]} Nf4 {[%clk 00:27:38]} {[%emt 00:01:00]} 18. gxf4
{[%clk 00:39:38]} {[%emt 00:00:41]} Rbd8 {[%clk 00:27:05]} {[%emt 00:00:43]} 19.
Nxf8 {[%clk 00:39:21]} {[%emt 00:00:27]} Rxf8 {[%clk 00:27:09]} {[%emt
00:00:06]} 20. e3 {[%clk 00:37:36]} {[%emt 00:01:56]} e5 {[%clk 00:26:55]}
{[%emt 00:00:24]} 21. Nd5 {[%clk 00:35:28]} {[%emt 00:02:17]} Qe6 {[%clk
00:26:26]} {[%emt 00:00:38]} 22. Qe4 {[%clk 00:35:10]} {[%emt 00:00:29]} Qg4+
{[%clk 00:26:13]} {[%emt 00:00:23]} 23. Qg2 {[%clk 00:35:07]} {[%emt 00:00:13]}
Qe6 {[%clk 00:26:15]} {[%emt 00:00:08]} 24. Kh1 {[%clk 00:35:05]} {[%emt
00:00:12]} h5 {[%clk 00:25:38]} {[%emt 00:00:47]} 25. Rg1 {[%clk 00:34:50]}
{[%emt 00:00:25]} Kh7 {[%clk 00:24:54]} {[%emt 00:00:54]} 26. Qf3 {[%clk
00:34:04]} {[%emt 00:00:56]} b6 {[%clk 00:24:27]} {[%emt 00:00:38]} 27. f5
{[%clk 00:33:41]} {[%emt 00:00:32]} 1-0

[Event "NK ABC Kwalificatie 2"]
[Site "Zoetermeer, Netherlands"]
[Date "????.??.??"]
[Round "7.3"]
[White "Ponomarev, Ivan"]
[Black "Kleibeuker, Mika"]
[Result "*"]
[TimeControl "55+10"]
[WhiteFideId "8662115"]
[BlackFideId "8577228"]
[WhiteElo "2005"]
[BlackElo "1980"]

1. c4 {[%clk 00:55:18]} {[%emt 00:00:01]} c6 {[%clk 00:55:17]} {[%emt
00:00:03]} 2. g3 {[%clk 00:55:18]} {[%emt 00:00:10]} d5 {[%clk 00:55:24]}
{[%emt 00:00:04]} 3. cxd5 {[%clk 00:55:07]} {[%emt 00:00:21]} cxd5 {[%clk
00:55:23]} {[%emt 00:00:10]} 4. d4 {[%clk 00:54:50]} {[%emt 00:00:28]} Nc6
{[%clk 00:55:13]} {[%emt 00:00:19]} 5. Nf3 {[%clk 00:54:21]} {[%emt 00:00:39]}
Nf6 {[%clk 00:55:18]} {[%emt 00:00:05]} 6. Bg2 {[%clk 00:54:15]} {[%emt
00:00:15]} Bf5 {[%clk 00:54:52]} {[%emt 00:00:37]} 7. a3 {[%clk 00:53:08]}
{[%emt 00:01:18]} e6 {[%clk 00:54:55]} {[%emt 00:00:06]} 8. O-O {[%clk
00:53:07]} {[%emt 00:00:11]} Bd6 {[%clk 00:52:36]} {[%emt 00:02:29]} 9. Nc3
{[%clk 00:53:04]} {[%emt 00:00:13]} a6 {[%clk 00:52:13]} {[%emt 00:00:33]} 10.
Re1 {[%clk 00:46:39]} {[%emt 00:06:35]} O-O {[%clk 00:52:05]} {[%emt 00:00:18]}
11. b4 {[%clk 00:41:26]} {[%emt 00:05:24]} b5 {[%clk 00:51:58]} {[%emt
00:00:16]} 12. Bb2 {[%clk 00:40:51]} {[%emt 00:00:45]} Qb6 {[%clk 00:50:38]}
{[%emt 00:01:29]} 13. Qd2 {[%clk 00:37:41]} {[%emt 00:03:21]} a5 {[%clk
00:48:34]} {[%emt 00:02:15]} 14. a4 {[%clk 00:29:50]} {[%emt 00:08:01]} Bxb4
{[%clk 00:43:25]} {[%emt 00:05:19]} 15. axb5 {[%clk 00:28:26]} {[%emt
00:01:34]} Na7 {[%clk 00:42:31]} {[%emt 00:01:03]} 16. Nh4 {[%clk 00:21:32]}
{[%emt 00:07:04]} Be4 {[%clk 00:39:31]} {[%emt 00:03:10]} 17. f3 {[%clk
00:16:46]} {[%emt 00:04:57]} Bg6 {[%clk 00:39:36]} {[%emt 00:00:04]} 18. Nxg6
{[%clk 00:16:51]} {[%emt 00:00:05]} hxg6 {[%clk 00:39:42]} {[%emt 00:00:04]} 19.
e3 {[%clk 00:15:54]} {[%emt 00:01:07]} Nxb5 {[%clk 00:39:13]} {[%emt 00:00:39]}
20. Bf1 {[%clk 00:15:29]} {[%emt 00:00:35]} Nxc3 {[%clk 00:35:13]} {[%emt
00:04:10]} 21. Bxc3 {[%clk 00:15:38]} {[%emt 00:00:02]} Bxc3 {[%clk 00:33:42]}
{[%emt 00:01:41]} 22. Qxc3 {[%clk 00:15:46]} {[%emt 00:00:02]} Rfc8 {[%clk
00:33:42]} {[%emt 00:00:09]} 23. Qd3 {[%clk 00:15:50]} {[%emt 00:00:06]} Rc4
{[%clk 00:31:55]} {[%emt 00:01:57]} 24. Ra3 {[%clk 00:13:39]} {[%emt 00:02:22]}
Rb4 {[%clk 00:30:35]} {[%emt 00:01:30]} 25. Rea1 {[%clk 00:13:27]} {[%emt
00:00:22]} Ne8 {[%clk 00:27:58]} {[%emt 00:02:46]} 26. Qc3 {[%clk 00:11:00]}
{[%emt 00:02:37]} Nd6 {[%clk 00:27:26]} {[%emt 00:00:42]} *

[Event "NK ABC Kwalificatie 2"]
[Site "Zoetermeer, Netherlands"]
[Date "????.??.??"]
[Round "7.4"]
[White "Ertabak, Aral"]
[Black "Van de Poel, Jona"]
[Result "*"]
[TimeControl "55+10"]
[WhiteFideId "9008483"]
[BlackFideId "8707633"]
[WhiteElo "1842"]
[BlackElo "1857"]

1. e4 {[%clk 00:55:03]} {[%emt 00:00:17]} c5 {[%clk 00:55:15]} {[%emt
00:00:05]} 2. c3 {[%clk 00:55:06]} {[%emt 00:00:08]} Nf6 {[%clk 00:55:17]}
{[%emt 00:00:07]} 3. e5 {[%clk 00:55:14]} {[%emt 00:00:03]} Nd5 {[%clk
00:55:21]} {[%emt 00:00:06]} 4. Nf3 {[%clk 00:55:22]} {[%emt 00:00:01]} d6
{[%clk 00:55:21]} {[%emt 00:00:10]} 5. d4 {[%clk 00:55:24]} {[%emt 00:00:08]}
cxd4 {[%clk 00:54:38]} {[%emt 00:00:54]} 6. cxd4 {[%clk 00:55:31]} {[%emt
00:00:02]} Nc6 {[%clk 00:54:27]} {[%emt 00:00:22]} 7. Bc4 {[%clk 00:55:21]}
{[%emt 00:00:19]} dxe5 {[%clk 00:54:00]} {[%emt 00:00:37]} 8. Bxd5 {[%clk
00:55:14]} {[%emt 00:00:18]} Qxd5 {[%clk 00:53:47]} {[%emt 00:00:22]} 9. Nc3
{[%clk 00:55:17]} {[%emt 00:00:07]} Qd6 {[%clk 00:50:28]} {[%emt 00:03:30]} 10.
d5 {[%clk 00:55:03]} {[%emt 00:00:24]} Nd4 {[%clk 00:48:11]} {[%emt 00:02:28]}
11. Nxd4 {[%clk 00:55:11]} {[%emt 00:00:02]} exd4 {[%clk 00:48:09]} {[%emt
00:00:11]} 12. Qxd4 {[%clk 00:55:18]} {[%emt 00:00:03]} Bd7 {[%clk 00:47:34]}
{[%emt 00:00:45]} 13. O-O {[%clk 00:53:05]} {[%emt 00:02:24]} e6 {[%clk
00:45:43]} {[%emt 00:02:01]} 14. Re1 {[%clk 00:33:24]} {[%emt 00:19:51]} Qb4
{[%clk 00:43:05]} {[%emt 00:02:47]} 15. Qe5 {[%clk 00:32:01]} {[%emt 00:01:32]}
Qd6 {[%clk 00:41:31]} {[%emt 00:01:45]} 16. Qg5 {[%clk 00:19:50]} {[%emt
00:12:20]} h6 {[%clk 00:40:08]} {[%emt 00:01:34]} 17. Qg4 {[%clk 00:19:16]}
{[%emt 00:00:42]} O-O-O {[%clk 00:35:45]} {[%emt 00:04:35]} 18. Be3 {[%clk
00:13:53]} {[%emt 00:05:33]} exd5 {[%clk 00:32:52]} {[%emt 00:03:02]} 19. Qd4
{[%clk 00:13:32]} {[%emt 00:00:30]} b6 {[%clk 00:32:43]} {[%emt 00:00:20]} 20.
a4 {[%clk 00:09:13]} {[%emt 00:04:30]} Kb7 {[%clk 00:30:00]} {[%emt 00:02:53]}
21. a5 {[%clk 00:08:42]} {[%emt 00:00:42]} Be7 {[%clk 00:28:59]} {[%emt
00:01:10]} 22. axb6 {[%clk 00:07:51]} {[%emt 00:01:01]} axb6 {[%clk 00:28:42]}
{[%emt 00:00:27]} *

[Event "NK ABC Kwalificatie 2"]
[Site "Zoetermeer, Netherlands"]
[Date "????.??.??"]
[Round "7.5"]
[White "Rogozyanskiy, Alexander"]
[Black "Kulikova, Polina"]
[Result "*"]
[TimeControl "55+10"]
[WhiteFideId "8973866"]
[BlackFideId "8896063"]
[WhiteElo "1873"]
[BlackElo "1774"]

1. e4 {[%clk 00:55:17]} {[%emt 00:00:02]} c6 {[%clk 00:55:19]} {[%emt
00:00:01]} 2. Nc3 {[%clk 00:55:21]} {[%emt 00:00:06]} d5 {[%clk 00:55:23]}
{[%emt 00:00:06]} 3. Nf3 {[%clk 00:55:30]} {[%emt 00:00:02]} dxe4 {[%clk
00:55:22]} {[%emt 00:00:11]} 4. Nxe4 {[%clk 00:55:35]} {[%emt 00:00:05]} Bf5
{[%clk 00:55:24]} {[%emt 00:00:07]} 5. Ng3 {[%clk 00:55:31]} {[%emt 00:00:14]}
Bg6 {[%clk 00:55:28]} {[%emt 00:00:07]} 6. h4 {[%clk 00:55:32]} {[%emt
00:00:08]} h6 {[%clk 00:55:29]} {[%emt 00:00:10]} 7. Ne5 {[%clk 00:54:53]}
{[%emt 00:00:48]} Qd6 {[%clk 00:48:14]} {[%emt 00:07:25]} 8. Nxg6 {[%clk
00:53:31]} {[%emt 00:01:32]} Qxg6 {[%clk 00:48:12]} {[%emt 00:00:12]} 9. d4
{[%clk 00:52:26]} {[%emt 00:01:14]} Qe6+ {[%clk 00:47:15]} {[%emt 00:01:08]} 10.
Be2 {[%clk 00:48:07]} {[%emt 00:04:28]} Nf6 {[%clk 00:45:39]} {[%emt 00:01:47]}
11. c4 {[%clk 00:45:39]} {[%emt 00:02:36]} Nbd7 {[%clk 00:40:30]} {[%emt
00:05:21]} 12. Bf4 {[%clk 00:44:49]} {[%emt 00:00:59]} Nb6 {[%clk 00:37:51]}
{[%emt 00:02:50]} 13. Rc1 {[%clk 00:40:16]} {[%emt 00:04:43]} g6 {[%clk
00:30:38]} {[%emt 00:07:23]} 14. O-O {[%clk 00:35:52]} {[%emt 00:04:32]} Bg7
{[%clk 00:27:14]} {[%emt 00:03:35]} 15. a4 {[%clk 00:35:11]} {[%emt 00:00:52]}
O-O {[%clk 00:23:33]} {[%emt 00:03:51]} 16. a5 {[%clk 00:34:27]} {[%emt
00:00:54]} Nc8 {[%clk 00:22:26]} {[%emt 00:01:17]} 17. Re1 {[%clk 00:32:46]}
{[%emt 00:01:51]} Qd7 {[%clk 00:21:58]} {[%emt 00:00:38]} 18. Be5 {[%clk
00:23:07]} {[%emt 00:09:49]} Rd8 {[%clk 00:19:42]} {[%emt 00:02:26]} 19. Qc2
{[%clk 00:21:03]} {[%emt 00:02:15]} e6 {[%clk 00:15:33]} {[%emt 00:04:18]} *

[Event "NK ABC Kwalificatie 2"]
[Site "Zoetermeer, Netherlands"]
[Date "????.??.??"]
[Round "7.6"]
[White "Teianu, Sabin"]
[Black "Zhu, Chenwu"]
[Result "1/2-1/2"]
[TimeControl "55+10"]
[WhiteFideId "8926082"]
[BlackFideId "8733846"]
[WhiteElo "2073"]
[BlackElo "2177"]

1. d4 {[%clk 00:55:18]} {[%emt 00:00:01]} d5 {[%clk 00:55:16]} {[%emt
00:00:05]} 2. c4 {[%clk 00:55:25]} {[%emt 00:00:03]} e6 {[%clk 00:55:22]}
{[%emt 00:00:03]} 3. Nf3 {[%clk 00:55:20]} {[%emt 00:00:15]} Nf6 {[%clk
00:55:28]} {[%emt 00:00:04]} 4. Nc3 {[%clk 00:55:28]} {[%emt 00:00:02]} c5
{[%clk 00:55:33]} {[%emt 00:00:05]} 5. cxd5 {[%clk 00:55:27]} {[%emt 00:00:10]}
Nxd5 {[%clk 00:55:39]} {[%emt 00:00:04]} 6. e4 {[%clk 00:55:23]} {[%emt
00:00:14]} Nxc3 {[%clk 00:55:46]} {[%emt 00:00:03]} 7. bxc3 {[%clk 00:55:27]}
{[%emt 00:00:05]} cxd4 {[%clk 00:55:54]} {[%emt 00:00:02]} 8. cxd4 {[%clk
00:55:13]} {[%emt 00:00:23]} Bb4+ {[%clk 00:55:54]} {[%emt 00:00:11]} 9. Bd2
{[%clk 00:55:14]} {[%emt 00:00:09]} Bxd2+ {[%clk 00:56:00]} {[%emt 00:00:04]}
10. Qxd2 {[%clk 00:55:10]} {[%emt 00:00:14]} O-O {[%clk 00:56:07]} {[%emt
00:00:03]} 11. Bc4 {[%clk 00:54:51]} {[%emt 00:00:30]} Nd7 {[%clk 00:56:13]}
{[%emt 00:00:04]} 12. O-O {[%clk 00:54:54]} {[%emt 00:00:07]} b6 {[%clk
00:56:20]} {[%emt 00:00:02]} 13. Rad1 {[%clk 00:55:00]} {[%emt 00:00:04]} Bb7
{[%clk 00:56:26]} {[%emt 00:00:04]} 14. Rfe1 {[%clk 00:54:59]} {[%emt
00:00:11]} Rc8 {[%clk 00:56:32]} {[%emt 00:00:04]} 15. Bb3 {[%clk 00:55:02]}
{[%emt 00:00:08]} Re8 {[%clk 00:56:36]} {[%emt 00:00:06]} 16. h3 {[%clk
00:54:20]} {[%emt 00:00:53]} Nf6 {[%clk 00:56:38]} {[%emt 00:00:07]} 17. Qf4
{[%clk 00:50:35]} {[%emt 00:03:55]} Nh5 {[%clk 00:56:41]} {[%emt 00:00:07]} 18.
Qg4 {[%clk 00:42:31]} {[%emt 00:08:13]} Nf6 {[%clk 00:56:29]} {[%emt 00:00:22]}
19. Qh4 {[%clk 00:40:13]} {[%emt 00:02:28]} Nd7 {[%clk 00:55:16]} {[%emt
00:01:22]} 20. Qg3 {[%clk 00:37:54]} {[%emt 00:02:29]} Nf6 {[%emt 00:01:20]} 21.
d5 {[%clk 00:37:08]} {[%emt 00:00:54]} exd5 {[%clk 00:52:24]} {[%emt 00:01:54]}
22. e5 {[%clk 00:37:10]} {[%emt 00:00:08]} Nd7 {[%clk 00:51:40]} {[%emt
00:00:54]} 23. Nd4 {[%clk 00:35:56]} {[%emt 00:01:24]} g6 {[%clk 00:39:45]}
{[%emt 00:12:05]} 24. Nf5 {[%clk 00:33:02]} {[%emt 00:03:04]} Nxe5 {[%clk
00:30:18]} {[%emt 00:09:37]} 25. Rxe5 {[%clk 00:28:11]} {[%emt 00:05:00]} Rxe5
{[%clk 00:29:47]} {[%emt 00:00:42]} 26. Qxe5 {[%clk 00:26:57]} {[%emt
00:01:24]} gxf5 {[%clk 00:29:50]} {[%emt 00:00:07]} 27. Qxf5 {[%clk 00:23:06]}
{[%emt 00:04:00]} Kf8 {[%clk 00:26:41]} {[%emt 00:03:20]} 28. Bxd5 {[%clk
00:18:49]} {[%emt 00:04:26]} Bxd5 {[%clk 00:26:35]} {[%emt 00:00:16]} 29. Rxd5
{[%clk 00:18:53]} {[%emt 00:00:06]} Rc1+ {[%clk 00:25:47]} {[%emt 00:00:58]} 30.
Kh2 {[%clk 00:18:56]} {[%emt 00:00:07]} Qc7+ {[%clk 00:25:41]} {[%emt
00:00:16]} 31. g3 {[%clk 00:13:58]} {[%emt 00:05:08]} Rc5 {[%clk 00:25:36]}
{[%emt 00:00:15]} 32. Rxc5 {[%clk 00:13:00]} {[%emt 00:01:08]} bxc5 {[%clk
00:24:55]} {[%emt 00:00:51]} 33. Qxh7 {[%clk 00:10:11]} {[%emt 00:02:59]} c4
{[%clk 00:24:55]} {[%emt 00:00:09]} 34. Qh8+ {[%clk 00:09:50]} {[%emt
00:00:32]} Ke7 {[%clk 00:25:04]} {[%emt 00:00:01]} 35. Qc3 {[%clk 00:09:51]}
{[%emt 00:00:09]} Qc5 {[%clk 00:24:06]} {[%emt 00:01:07]} 36. Kg2 {[%clk
00:09:40]} {[%emt 00:00:22]} Qc6+ {[%clk 00:24:04]} {[%emt 00:00:12]} 37. Qf3
{[%clk 00:09:12]} {[%emt 00:00:38]} Qa4 {[%clk 00:23:35]} {[%emt 00:00:39]} 38.
Qe2+ {[%clk 00:08:08]} {[%emt 00:01:15]} Kf8 {[%clk 00:23:19]} {[%emt
00:00:25]} 39. Qd2 {[%clk 00:05:30]} {[%emt 00:02:48]} Qc6+ {[%clk 00:22:50]}
{[%emt 00:00:38]} 40. Kf1 {[%clk 00:05:31]} {[%emt 00:00:10]} c3 {[%clk
00:21:59]} {[%emt 00:01:01]} 41. Qc2 {[%clk 00:05:38]} {[%emt 00:00:04]} Qh1+
{[%clk 00:20:37]} {[%emt 00:01:32]} 42. Ke2 {[%clk 00:05:42]} {[%emt 00:00:06]}
Qxh3 {[%emt 00:03:53]} 1/2-1/2

[Event "NK ABC Kwalificatie 2"]
[Site "Zoetermeer, Netherlands"]
[Date "????.??.??"]
[Round "7.7"]
[White "Kazarjan, Gachatur"]
[Black "Teianu, Maxim"]
[Result "1-0"]
[TimeControl "55+10"]
[WhiteFideId "8595884"]
[BlackFideId "8926093"]
[WhiteElo "2105"]
[BlackElo "2026"]

1. e4 {[%clk 00:53:14]} {[%emt 00:02:06]} e6 {[%clk 00:54:45]} {[%emt
00:00:35]} 2. d4 {[%clk 00:53:19]} {[%emt 00:00:05]} d5 {[%clk 00:54:52]}
{[%emt 00:00:04]} 3. Nd2 {[%clk 00:53:26]} {[%emt 00:00:03]} Nf6 {[%clk
00:54:56]} {[%emt 00:00:06]} 4. e5 {[%clk 00:53:32]} {[%emt 00:00:04]} Nfd7
{[%clk 00:55:00]} {[%emt 00:00:06]} 5. c3 {[%clk 00:53:38]} {[%emt 00:00:04]}
c5 {[%clk 00:55:07]} {[%emt 00:00:02]} 6. f4 {[%clk 00:53:44]} {[%emt
00:00:03]} Nc6 {[%clk 00:55:06]} {[%emt 00:00:12]} 7. Ndf3 {[%clk 00:53:51]}
{[%emt 00:00:04]} cxd4 {[%emt 00:00:14]} 8. cxd4 {[%emt 00:00:04]} a5 {[%clk
00:54:47]} {[%emt 00:00:10]} 9. Bd3 {[%clk 00:53:19]} {[%emt 00:00:42]} Nb6
{[%clk 00:54:43]} {[%emt 00:00:14]} 10. Ne2 {[%clk 00:53:13]} {[%emt 00:00:16]}
a4 {[%clk 00:54:42]} {[%emt 00:00:12]} 11. O-O {[%clk 00:53:13]} {[%emt
00:00:10]} a3 {[%clk 00:54:40]} {[%emt 00:00:12]} 12. b3 {[%clk 00:53:18]}
{[%emt 00:00:05]} Bd7 {[%clk 00:54:25]} {[%emt 00:00:25]} 13. Kh1 {[%clk
00:52:37]} {[%emt 00:00:51]} g6 {[%clk 00:54:08]} {[%emt 00:00:27]} 14. Nc3
{[%clk 00:49:09]} {[%emt 00:03:38]} Nb4 {[%clk 00:52:45]} {[%emt 00:01:33]} 15.
Bb1 {[%clk 00:48:58]} {[%emt 00:00:20]} h5 {[%clk 00:51:52]} {[%emt 00:01:02]}
16. Qe2 {[%clk 00:47:54]} {[%emt 00:01:15]} Nc8 {[%clk 00:51:14]} {[%emt
00:00:49]} 17. Bd2 {[%clk 00:44:33]} {[%emt 00:03:30]} Na7 {[%clk 00:50:53]}
{[%emt 00:00:32]} 18. Bc1 {[%clk 00:41:39]} {[%emt 00:03:04]} Qa5 {[%clk
00:50:07]} {[%emt 00:00:55]} 19. Ng5 {[%clk 00:39:16]} {[%emt 00:02:34]} Nb5
{[%clk 00:49:27]} {[%emt 00:00:50]} 20. Qd2 {[%clk 00:35:11]} {[%emt 00:04:15]}
Rc8 {[%clk 00:47:17]} {[%emt 00:02:19]} 21. Nxb5 {[%clk 00:24:57]} {[%emt
00:10:25]} Bxb5 {[%clk 00:46:54]} {[%emt 00:00:33]} 22. Rd1 {[%clk 00:24:35]}
{[%emt 00:00:32]} Qa6 {[%clk 00:45:43]} {[%emt 00:01:21]} 23. Qe1 {[%clk
00:18:55]} {[%emt 00:05:50]} Nd3 {[%clk 00:40:28]} {[%emt 00:05:26]} 24. Qe3
{[%clk 00:15:41]} {[%emt 00:03:25]} Nxc1 {[%clk 00:38:37]} {[%emt 00:02:00]} 25.
Rxc1 {[%clk 00:15:45]} {[%emt 00:00:05]} Rc6 {[%clk 00:37:45]} {[%emt
00:01:01]} 26. Bc2 {[%clk 00:15:19]} {[%emt 00:00:37]} Bb4 {[%clk 00:37:02]}
{[%emt 00:00:53]} 27. Bd1 {[%clk 00:15:01]} {[%emt 00:00:28]} Qa5 {[%clk
00:35:06]} {[%emt 00:02:06]} 28. Rxc6 {[%clk 00:12:50]} {[%emt 00:02:21]} bxc6
{[%clk 00:35:04]} {[%emt 00:00:12]} 29. Nf3 {[%clk 00:12:48]} {[%emt 00:00:12]}
Kd7 {[%clk 00:33:51]} {[%emt 00:01:22]} 30. Rc1 {[%clk 00:10:57]} {[%emt
00:02:01]} Rc8 {[%clk 00:33:30]} {[%emt 00:00:31]} 31. Rc2 {[%clk 00:10:16]}
{[%emt 00:00:52]} Rc7 {[%clk 00:32:31]} {[%emt 00:01:08]} 32. Ng5 {[%clk
00:08:13]} {[%emt 00:02:13]} Kc8 {[%clk 00:32:29]} {[%emt 00:00:12]} 33. f5
{[%clk 00:08:13]} {[%emt 00:00:11]} exf5 {[%clk 00:30:57]} {[%emt 00:01:41]} 34.
e6 {[%clk 00:08:02]} {[%emt 00:00:21]} f6 {[%clk 00:30:57]} {[%emt 00:00:11]}
35. Nf7 {[%clk 00:07:15]} {[%emt 00:00:56]} Be7 {[%clk 00:30:24]} {[%emt
00:00:43]} 36. Bf3 {[%clk 00:06:36]} {[%emt 00:00:49]} h4 {[%clk 00:28:38]}
{[%emt 00:01:56]} 37. h3 {[%clk 00:06:14]} {[%emt 00:00:33]} g5 {[%clk
00:27:44]} {[%emt 00:01:03]} 38. Nh6 {[%clk 00:05:32]} {[%emt 00:00:51]} f4
{[%clk 00:27:42]} {[%emt 00:00:12]} 39. Qc1 {[%clk 00:05:30]} {[%emt 00:00:12]}
Kb8 {[%clk 00:27:07]} {[%emt 00:00:45]} 40. Ng8 {[%clk 00:03:47]} {[%emt
00:01:53]} Qb4 {[%clk 00:26:28]} {[%emt 00:00:49]} 41. Bxd5 {[%clk 00:02:45]}
{[%emt 00:01:12]} Qxd4 {[%clk 00:26:04]} {[%emt 00:00:34]} 42. Nxe7 {[%clk
00:01:54]} {[%emt 00:01:01]} Rxe7 {[%clk 00:25:59]} {[%emt 00:00:15]} 43. Bxc6
{[%clk 00:01:12]} {[%emt 00:00:52]} Bd3 {[%clk 00:25:48]} {[%emt 00:00:21]} 44.
Qxa3 {[%clk 00:00:35]} {[%emt 00:00:47]} Re8 {[%clk 00:17:58]} {[%emt
00:08:00]} 45. Qa8+ {[%clk 00:00:22]} {[%emt 00:00:23]} Kc7 {[%clk 00:18:04]}
{[%emt 00:00:04]} 46. Qb7+ {[%clk 00:00:13]} {[%emt 00:00:19]} Kd6 {[%clk
00:17:56]} {[%emt 00:00:18]} 47. Rd2 {[%clk 00:00:18]} {[%emt 00:00:05]} Re7
{[%clk 00:16:43]} {[%emt 00:01:24]} 48. Qc8 {[%clk 00:00:14]} {[%emt 00:00:14]}
Ke5 {[%clk 00:16:19]} {[%emt 00:00:33]} 49. Qb8+ {[%clk 00:00:16]} {[%emt
00:00:08]} Kxe6 {[%clk 00:14:23]} {[%emt 00:02:06]} 50. Qc8+ {[%clk 00:00:13]}
{[%emt 00:00:13]} Kf7 {[%clk 00:14:12]} {[%emt 00:00:22]} 51. Rd1 {[%clk
00:00:18]} {[%emt 00:00:05]} Qc5 {[%clk 00:11:42]} {[%emt 00:02:39]} 52. Be8+
{[%clk 00:00:24]} {[%emt 00:00:04]} Rxe8 {[%clk 00:11:10]} {[%emt 00:00:42]} 53.
Qxc5 {[%clk 00:00:33]} {[%emt 00:00:01]} 1-0